fUSD/lending_fUSD_20250217
["ID","MTS","AMOUNT","RATE_DAILY","PERIOD"]
[353370534,1739801475110,-1453.46,0.00013945,2]
[353370535,1739801475120,-1502.25,0.00013945,2]
[353370536,1739801475129,-2363.94,0.00013945,2]
[353370537,1739801475138,-500.0,0.00013945,2]
[353370538,1739801475148,-500.0,0.00013945,2]
[353370539,1739801475157,-1079.01,0.00013951,2]
[353370540,1739801475166,-113138.0,0.00013951,2]
[353370541,1739801475177,-295.52834082,0.00013972,2]
[353370542,1739801475186,-500.0,0.00013973,7]
[353370543,1739801475195,-200.0,0.00013973,2]
[353370544,1739801475204,-1003.65463578,0.0001399,2]
[353370545,1739801475214,-500.0,0.00013999,2]
[353370546,1739801475223,-532.19,0.00013999,2]
[353370547,1739801475232,-445.05365132,0.00014,2]
[353370548,1739801475683,-53497.42622482,0.00014,2]
[353370549,1739801475693,-4138.57906372,0.00014,2]
[353370550,1739801475702,-2500.0,0.00014,2]
[353370551,1739801475712,-300.000001,0.00014,2]
[353370552,1739801475721,-650.0,0.00014,2]
[353370553,1739801475732,-249.0,0.0001402,2]
[353370554,1739801475742,-500.0,0.00014026,2]
[353370555,1739801475752,-470.42232056,0.00014026,2]
[353370556,1739801475762,-532.19,0.00014026,2]
[353370557,1739801475772,-532.19,0.00014026,2]
[353370558,1739801475781,-1079.01,0.00014026,2]
[353370559,1739801475792,-1079.01,0.00014026,2]
[353370560,1739801475801,-1079.01,0.00014026,2]
[353370561,1739801475813,-1079.01,0.00014026,2]
[353370562,1739801475823,-1079.07319883,0.00014026,2]
[353370563,1739801475832,-916.85,0.00014026,2]
[353370564,1739801475842,-916.85,0.00014026,2]
[353370565,1739801475852,-916.85,0.00014026,2]
[353370566,1739801475861,-1000.0,0.00014026,2]
[353370567,1739801475873,-933.48,0.00014027,2]
[353370568,1739801475882,-500.0,0.00014027,2]
[353370569,1739801475892,-792.13,0.00014027,2]
[353370570,1739801475901,-500.0,0.00014027,2]
[353370571,1739801475913,-500.0,0.00014027,2]
[353370572,1739801475923,-500.0,0.00014027,2]
[353370573,1739801475932,-500.0,0.00014027,2]
[353370574,1739801475941,-169.45309973,0.00014027,2]
[353370575,1739801475952,-500.0,0.00014027,2]
[353370576,1739801475961,-500.0,0.00014027,2]
[353370577,1739801475971,-526.43,0.00014027,2]
[353370578,1739801475980,-669.46,0.00014027,2]
[353370579,1739801475990,-768.73,0.00014027,2]
[353370580,1739801476000,-500.0,0.00014027,2]
[353370581,1739801476009,-500.0,0.00014027,2]
[353370582,1739801476019,-500.0,0.00014027,2]
[353370583,1739801476028,-500.0,0.00014027,2]
[353370584,1739801476037,-500.0,0.00014027,2]
[353370585,1739801476047,-500.0,0.00014027,2]
[353370586,1739801476056,-856.36,0.00014027,2]
[353370587,1739801476066,-500.0,0.00014027,2]
[353370588,1739801476077,-500.0,0.00014027,2]
[353370589,1739801476086,-500.0,0.00014027,2]
[353370590,1739801476096,-500.0,0.00014027,2]
[353370591,1739801476105,-500.0,0.00014027,2]
[353370592,1739801476114,-500.0,0.00014027,2]
[353370593,1739801476124,-500.0,0.00014027,2]
[353370594,1739801476134,-500.0,0.00014027,2]
[353370595,1739801476143,-500.0,0.00014027,2]
[353370596,1739801476152,-500.0,0.00014027,2]
[353370597,1739801476161,-500.0,0.00014027,2]
[353370598,1739801476170,-500.0,0.00014027,2]
[353370599,1739801476179,-500.0,0.00014027,2]
[353370600,1739801476189,-500.0,0.00014027,2]
[353370601,1739801476198,-500.0,0.00014027,2]
[353370602,1739801476207,-500.0,0.00014027,2]
[353370603,1739801476217,-500.0,0.00014027,2]
[353370604,1739801476226,-500.0,0.00014027,2]
[353370605,1739801476236,-500.0,0.00014027,2]
[353370606,1739801476246,-500.0,0.00014027,2]
[353370607,1739801476255,-500.0,0.00014027,2]
[353370608,1739801476265,-500.0,0.00014027,2]
[353370609,1739801476275,-500.0,0.00014027,2]
[353370610,1739801476284,-563.74,0.00014027,2]
[353370611,1739801476294,-827.97,0.00014027,2]
[353370612,1739801476303,-500.0,0.00014027,2]
[353370613,1739801476316,-152.852518,0.00014027,2]
[353370614,1739801476325,-500.0,0.00014027,2]
[353370615,1739801476334,-1379.489784,0.00014027,2]
[353370616,1739801476343,-1283.11,0.00014027,2]
[353370617,1739801476353,-500.0,0.00014027,2]
[353370618,1739801476362,-500.0,0.00014027,2]
[353370619,1739801476371,-500.0,0.00014027,2]
[353370620,1739801476380,-1042.31,0.00014027,2]
[353370621,1739801476390,-1707.29,0.00014027,2]
[353370622,1739801476400,-956.21,0.00014027,2]
[353370623,1739801476409,-500.0,0.00014027,2]
[353370624,1739801476418,-1297.73,0.00014027,2]
[353370625,1739801476428,-1805.83,0.00014027,2]
[353370626,1739801476437,-500.0,0.00014027,2]
[353370627,1739801476446,-1404.260133,0.00014027,2]
[353370628,1739801476455,-500.0,0.00014027,2]
[353370629,1739801476465,-500.0,0.00014027,2]
[353370630,1739801476475,-500.0,0.00014027,2]
[353370631,1739801476485,-500.0,0.00014027,2]
[353370632,1739801476495,-1697.94,0.00014027,2]
[353370633,1739801476504,-500.0,0.00014027,2]
[353370634,1739801476513,-500.0,0.00014027,2]
[353370635,1739801476523,-895.07,0.00014027,2]
[353370636,1739801476536,-500.0,0.00014027,2]
[353370637,1739801476545,-500.0,0.00014027,2]
[353370638,1739801476556,-500.0,0.00014027,2]
[353370639,1739801476566,-500.0,0.00014027,2]
[353370640,1739801476575,-500.0,0.00014027,2]
[353370641,1739801476585,-1494.02,0.00014027,2]
[353370642,1739801476594,-902.2,0.00014027,2]
[353370643,1739801476603,-500.0,0.00014027,2]
[353370644,1739801476613,-1362.88,0.00014027,2]
[353370645,1739801476622,-500.0,0.00014027,2]
[353370646,1739801476631,-500.0,0.00014027,2]
[353370647,1739801476641,-500.0,0.00014027,2]
[353370648,1739801476654,-693.68,0.00014027,2]
[353370649,1739801476664,-500.0,0.00014027,2]
[353370650,1739801476673,-814.96,0.00014027,2]
[353370651,1739801476683,-1086.38,0.00014027,2]
[353370652,1739801476692,-849.51,0.00014027,2]
[353370653,1739801476702,-500.0,0.00014027,2]
[353370654,1739801476711,-500.0,0.00014027,2]
[353370655,1739801476721,-1037.87,0.00014027,2]
[353370656,1739801476731,-500.0,0.00014027,2]
[353370657,1739801476741,-500.0,0.00014027,2]
[353370658,1739801476752,-500.0,0.00014027,2]
[353370659,1739801476762,-1401.2,0.00014027,2]
[353370660,1739801476772,-500.0,0.00014027,2]
[353370661,1739801476782,-774.28,0.00014027,2]
[353370662,1739801476792,-500.0,0.00014027,2]
[353370663,1739801476802,-500.0,0.00014027,2]
[353370664,1739801476814,-1524.64,0.00014027,2]
[353370665,1739801476824,-500.0,0.00014027,2]
[353370666,1739801476834,-1007.95,0.00014027,2]
[353370667,1739801476843,-579.45092054,0.00014027,2]
[353370668,1739801476853,-900.55,0.00014027,2]
[353370669,1739801476862,-500.0,0.00014027,2]
[353370670,1739801476872,-500.0,0.00014027,2]
[353370671,1739801476881,-1381.54,0.00014027,2]
[353370672,1739801476892,-500.0,0.00014027,2]
[353370673,1739801476901,-500.0,0.00014027,2]
[353370674,1739801476915,-500.0,0.00014027,2]
[353370675,1739801476924,-500.0,0.00014027,2]
[353370676,1739801476934,-570.64,0.00014027,2]
[353370677,1739801476944,-814.34,0.00014027,2]
[353370678,1739801476955,-500.0,0.00014027,2]
[353370679,1739801476964,-1012.88,0.00014027,2]
[353370680,1739801476974,-1037.56,0.00014027,2]
[353370681,1739801476985,-817.76,0.00014027,2]
[353370682,1739801476995,-500.0,0.00014027,2]
[353370683,1739801477196,-795.08,0.00014027,2]
[353370684,1739801477207,-995.98,0.00014027,2]
[353370685,1739801477217,-667.8,0.00014027,2]
[353370686,1739801477228,-1140.57,0.00014027,2]
[353370687,1739801477240,-500.0,0.00014027,2]
[353370688,1739801477249,-1488.19,0.00014027,2]
[353370689,1739801477259,-500.0,0.00014027,2]
[353370690,1739801477268,-500.0,0.00014027,2]
[353370691,1739801477278,-826.86,0.00014027,2]
[353370692,1739801477289,-500.0,0.00014027,2]
[353370693,1739801477298,-500.0,0.00014027,2]
[353370694,1739801477310,-749.68,0.00014027,2]
[353370695,1739801477321,-520.74647553,0.00014027,2]
[353370696,1739801477331,-500.0,0.00014027,2]
[353370697,1739801477341,-500.0,0.00014027,2]
[353370698,1739801477352,-779.56,0.00014027,2]
[353370699,1739801477362,-500.0,0.00014027,2]
[353370700,1739801477372,-500.0,0.00014027,2]
[353370701,1739801477382,-617.29,0.00014027,2]
[353370702,1739801477392,-678.5,0.00014027,2]
[353370703,1739801477402,-1280.69,0.00014027,2]
[353370704,1739801477412,-500.0,0.00014027,2]
[353370705,1739801477421,-500.0,0.00014027,2]
[353370706,1739801477430,-500.0,0.00014027,2]
[353370707,1739801477439,-500.0,0.00014027,2]
[353370708,1739801477448,-728.75,0.00014027,2]
[353370709,1739801477457,-510.47,0.00014027,2]
[353370710,1739801477466,-500.0,0.00014027,2]
[353370711,1739801477476,-500.0,0.00014027,2]
[353370712,1739801477487,-789.35,0.00014027,2]
[353370713,1739801477497,-636.21,0.00014027,2]
[353370714,1739801477506,-500.0,0.00014027,2]
[353370715,1739801477516,-500.0,0.00014027,2]
[353370716,1739801477525,-1073.96,0.00014027,2]
[353370717,1739801477538,-500.0,0.00014027,2]
[353370718,1739801477549,-500.0,0.00014027,2]
[353370719,1739801477560,-500.0,0.00014027,2]
[353370720,1739801477569,-1089.45,0.00014027,2]
[353370721,1739801477579,-1354.53,0.00014027,2]
[353370722,1739801477589,-512.61,0.00014027,2]
[353370723,1739801477598,-500.0,0.00014027,2]
[353370724,1739801477608,-793.08,0.00014027,2]
[353370725,1739801477617,-500.0,0.00014027,2]
[353370726,1739801477626,-500.0,0.00014027,2]
[353370727,1739801477635,-904.7,0.00014027,2]
[353370728,1739801477645,-500.0,0.00014027,2]
[353370729,1739801477654,-804.95,0.00014027,2]
[353370730,1739801477664,-500.0,0.00014027,2]
[353370731,1739801477674,-500.0,0.00014027,2]
[353370732,1739801477684,-677.75,0.00014027,2]
[353370733,1739801477694,-1505.74,0.00014027,2]
[353370734,1739801477703,-500.0,0.00014027,2]
[353370735,1739801477713,-1233.4,0.00014027,2]
[353370736,1739801477725,-500.0,0.00014027,2]
[353370737,1739801477734,-500.0,0.00014027,2]
[353370738,1739801477743,-1099.48,0.00014027,2]
[353370739,1739801477753,-551.18,0.00014027,2]
[353370740,1739801477763,-500.0,0.00014027,2]
[353370741,1739801477773,-500.0,0.00014027,2]
[353370742,1739801477783,-1576.92,0.00014027,2]
[353370743,1739801477792,-1016.16,0.00014027,2]
[353370744,1739801477801,-500.0,0.00014027,2]
[353370745,1739801477813,-1372.68,0.00014027,2]
[353370746,1739801477823,-522.88,0.00014027,2]
[353370747,1739801477834,-500.0,0.00014027,2]
[353370748,1739801477844,-707.2,0.00014027,2]
[353370749,1739801477854,-500.0,0.00014027,2]
[353370750,1739801477863,-500.0,0.00014027,2]
[353370751,1739801477872,-609.9,0.00014027,2]
[353370752,1739801477882,-735.73,0.00014027,2]
[353370753,1739801477893,-613.97842519,0.00014027,2]
[353370754,1739801477904,-1497.41,0.00014027,2]
[353370755,1739801477913,-995.21,0.00014027,2]
[353370756,1739801477923,-500.0,0.00014027,2]
[353370757,1739801477934,-500.0,0.00014027,2]
[353370758,1739801477944,-500.0,0.00014027,2]
[353370759,1739801477954,-500.0,0.00014027,2]
[353370760,1739801477963,-500.0,0.00014027,2]
[353370761,1739801477973,-500.0,0.00014027,2]
[353370762,1739801477983,-500.0,0.00014027,2]
[353370763,1739801477993,-1263.18,0.00014027,2]
[353370764,1739801478002,-500.0,0.00014027,2]
[353370765,1739801478011,-500.0,0.00014027,2]
[353370766,1739801478021,-183.39674874,0.00014027,2]
[353370767,1739801478030,-500.0,0.00014027,2]
[353370768,1739801478039,-1358.71,0.00014027,2]
[353370769,1739801478049,-500.0,0.00014027,2]
[353370770,1739801478060,-895.94,0.00014027,2]
[353370771,1739801478070,-500.0,0.00014027,2]
[353370772,1739801478080,-799.61,0.00014027,2]
[353370773,1739801478089,-736.85,0.00014027,2]
[353370774,1739801478099,-500.0,0.00014027,2]
[353370775,1739801478108,-996.91,0.00014027,2]
[353370776,1739801478118,-500.0,0.00014027,2]
[353370777,1739801478127,-500.0,0.00014027,2]
[353370778,1739801478141,-542.91384112,0.00014027,2]
[353370779,1739801478152,-1352.58,0.00014027,2]
[353370780,1739801478162,-500.0,0.00014027,2]
[353370781,1739801478171,-500.0,0.00014027,2]
[353370782,1739801478181,-689.3,0.00014027,2]
[353370783,1739801478190,-500.0,0.00014027,2]
[353370784,1739801478200,-874.71,0.00014027,2]
[353370785,1739801478209,-500.0,0.00014027,2]
[353370786,1739801478219,-500.0,0.00014027,2]
[353370787,1739801478229,-500.0,0.00014027,2]
[353370788,1739801478239,-500.0,0.00014027,2]
[353370789,1739801478249,-500.0,0.00014027,2]
[353370790,1739801478260,-500.0,0.00014027,2]
[353370791,1739801478273,-571.34,0.00014027,2]
[353370792,1739801478284,-577.68,0.00014027,2]
[353370793,1739801478294,-500.0,0.00014027,2]
[353370794,1739801478304,-500.0,0.00014027,2]
[353370795,1739801478320,-500.0,0.00014027,2]
[353370796,1739801478330,-1404.31,0.00014027,2]
[353370797,1739801478341,-500.0,0.00014027,2]
[353370798,1739801478352,-1086.88,0.00014027,2]
[353370799,1739801478363,-500.0,0.00014027,2]
[353370800,1739801478377,-500.0,0.00014027,2]
[353370801,1739801478388,-779.67,0.00014027,2]
[353370802,1739801478399,-500.0,0.00014027,2]
[353370803,1739801478410,-1370.25,0.00014027,2]
[353370804,1739801478421,-500.0,0.00014027,2]
[353370805,1739801478432,-500.0,0.00014027,2]
[353370806,1739801478442,-500.0,0.00014027,2]
[353370807,1739801478453,-500.0,0.00014027,2]
[353370808,1739801478464,-899.75,0.00014027,2]
[353370809,1739801478475,-500.0,0.00014027,2]
[353370810,1739801478487,-729.47,0.00014027,2]
[353370811,1739801478497,-500.0,0.00014027,2]
[353370812,1739801478509,-1609.9,0.00014027,2]
[353370813,1739801478519,-500.0,0.00014027,2]
[353370814,1739801478529,-924.3,0.00014027,2]
[353370815,1739801478539,-158.04535975,0.00014027,2]
[353370816,1739801478550,-500.0,0.00014027,2]
[353370817,1739801478564,-1589.54,0.00014027,2]
[353370818,1739801478574,-500.0,0.00014027,2]
[353370819,1739801478585,-561.41,0.00014027,2]
[353370820,1739801478595,-648.32,0.00014027,2]
[353370821,1739801478606,-518.04,0.00014027,2]
[353370822,1739801478616,-1627.78,0.00014027,2]
[353370823,1739801478626,-920.09,0.00014027,2]
[353370824,1739801478636,-500.0,0.00014027,2]
[353370825,1739801478646,-759.19,0.00014027,2]
[353370826,1739801478656,-611.0,0.00014027,2]
[353370827,1739801478666,-543.01603052,0.00014027,2]
[353370828,1739801478676,-1705.38,0.00014027,2]
[353370829,1739801478686,-500.0,0.00014027,2]
[353370830,1739801478696,-1554.86,0.00014027,2]
[353370831,1739801478706,-500.0,0.00014027,2]
[353370832,1739801478716,-1089.32,0.00014027,2]
[353370833,1739801478727,-1015.89,0.00014027,2]
[353370834,1739801478737,-988.26,0.00014027,2]
[353370835,1739801478748,-500.0,0.00014027,2]
[353370836,1739801478758,-500.0,0.00014027,2]
[353370837,1739801478768,-500.0,0.00014027,2]
[353370838,1739801478779,-500.0,0.00014027,2]
[353370839,1739801478789,-1661.51,0.00014027,2]
[353370840,1739801478799,-941.79,0.00014027,2]
[353370841,1739801478814,-1078.44,0.00014027,2]
[353370842,1739801478825,-500.0,0.00014027,2]
[353370843,1739801478835,-500.0,0.00014027,2]
[353370844,1739801478846,-500.0,0.00014027,2]
[353370845,1739801478856,-500.0,0.00014027,2]
[353370846,1739801478867,-1384.93,0.00014027,2]
[353370847,1739801478878,-500.0,0.00014027,2]
[353370848,1739801478890,-1471.5,0.00014027,2]
[353370849,1739801478900,-500.0,0.00014027,2]
[353370850,1739801478911,-500.0,0.00014027,2]
[353370851,1739801478922,-500.0,0.00014027,2]
[353370852,1739801478932,-500.0,0.00014027,2]
[353370853,1739801478942,-500.0,0.00014027,2]
[353370854,1739801478952,-500.0,0.00014027,2]
[353370855,1739801478963,-1651.32,0.00014027,2]
[353370856,1739801478972,-691.12,0.00014027,2]
[353370857,1739801478982,-998.65,0.00014027,2]
[353370858,1739801478994,-500.0,0.00014027,2]
[353370859,1739801479003,-500.0,0.00014027,2]
[353370860,1739801479013,-500.0,0.00014027,2]
[353370861,1739801479022,-1625.12,0.00014027,2]
[353370862,1739801479032,-1120.48,0.00014027,2]
[353370863,1739801479041,-500.0,0.00014027,2]
[353370864,1739801479051,-500.0,0.00014027,2]
[353370865,1739801479066,-1145.67,0.00014027,2]
[353370866,1739801479075,-1045.54,0.00014027,2]
[353370867,1739801479085,-500.0,0.00014027,2]
[353370868,1739801479095,-500.0,0.00014027,2]
[353370869,1739801479105,-653.46,0.00014027,2]
[353370870,1739801479115,-500.0,0.00014027,2]
[353370871,1739801479124,-1041.19,0.00014027,2]
[353370872,1739801479134,-1571.07,0.00014027,2]
[353370873,1739801479144,-500.0,0.00014027,2]
[353370874,1739801479154,-1254.62,0.00014027,2]
[353370875,1739801479164,-1917.02,0.00014027,2]
[353370876,1739801479174,-3247.67,0.00014027,2]
[353370877,1739801479184,-500.0,0.00014027,2]
[353370878,1739801479193,-500.0,0.00014027,2]
[353370879,1739801479203,-1682.9,0.00014027,2]
[353370880,1739801479214,-500.0,0.00014027,2]
[353370881,1739801479223,-500.0,0.00014027,2]
[353370882,1739801479233,-3387.61,0.00014027,2]
[353370883,1739801479243,-1495.97,0.00014027,2]
[353370884,1739801479252,-500.0,0.00014027,2]
[353370885,1739801479263,-842.09,0.00014027,2]
[353370886,1739801479272,-1165.09,0.00014027,2]
[353370887,1739801479281,-1714.58,0.00014027,2]
[353370888,1739801479292,-570.11,0.00014027,2]
[353370889,1739801479302,-1795.35,0.00014027,2]
[353370890,1739801479315,-500.0,0.00014027,2]
[353370891,1739801479325,-628.27,0.00014027,2]
[353370892,1739801479335,-1544.97,0.00014027,2]
[353370893,1739801479345,-940.94,0.00014027,2]
[353370894,1739801479355,-1177.99,0.00014027,2]
[353370895,1739801479365,-790.0,0.00014027,2]
[353370896,1739801479375,-613.82,0.00014027,2]
[353370897,1739801479385,-564.31,0.00014027,2]
[353370898,1739801479396,-2317.59,0.00014027,2]
[353370899,1739801479406,-500.0,0.00014027,2]
[353370900,1739801479416,-1517.67,0.00014027,2]
[353370901,1739801479427,-1922.5,0.00014027,2]
[353370902,1739801479438,-500.0,0.00014027,2]
[353370903,1739801479448,-500.0,0.00014027,2]
[353370904,1739801479458,-1385.84,0.00014027,2]
[353370905,1739801479469,-546.98,0.00014027,2]
[353370906,1739801479479,-531.03,0.00014027,2]
[353370907,1739801479649,-1618.7,0.00014027,2]
[353370908,1739801479660,-500.0,0.00014027,2]
[353370909,1739801479670,-500.0,0.00014027,2]
[353370910,1739801479680,-1661.49,0.00014027,2]
[353370911,1739801479690,-1003.49,0.00014027,2]
[353370912,1739801479699,-3314.57,0.00014027,2]
[353370913,1739801479710,-724.51,0.00014027,2]
[353370914,1739801479719,-500.0,0.00014027,2]
[353370915,1739801479729,-2160.75,0.00014027,2]
[353370916,1739801479738,-1676.7,0.00014027,2]
[353370917,1739801479748,-884.56,0.00014027,2]
[353370918,1739801479758,-500.0,0.00014027,2]
[353370919,1739801479768,-2179.93,0.00014027,2]
[353370920,1739801479778,-220.91073491,0.00014027,2]
[353370921,1739801479788,-500.0,0.00014027,2]
[353370922,1739801479798,-2493.84,0.00014027,2]
[353370923,1739801479808,-660.98,0.00014027,2]
[353370924,1739801479818,-1692.41,0.00014027,2]
[353370925,1739801479828,-500.0,0.00014027,2]
[353370926,1739801479837,-500.0,0.00014027,2]
[353370927,1739801479848,-500.0,0.00014027,2]
[353370928,1739801479858,-805.83,0.00014027,2]
[353370929,1739801479867,-500.0,0.00014027,2]
[353370930,1739801479876,-1046.36,0.00014027,2]
[353370931,1739801479887,-500.0,0.00014027,2]
[353370932,1739801479902,-500.0,0.00014027,2]
[353370933,1739801479912,-2179.25,0.00014027,2]
[353370934,1739801479923,-784.27,0.00014027,2]
[353370935,1739801479933,-1091.69,0.00014027,2]
[353370936,1739801479944,-500.0,0.00014027,2]
[353370937,1739801479954,-500.0,0.00014027,2]
[353370938,1739801479963,-500.0,0.00014027,2]
[353370939,1739801479973,-544.98,0.00014027,2]
[353370940,1739801479983,-602.77,0.00014027,2]
[353370941,1739801479993,-1829.18,0.00014027,2]
[353370942,1739801480002,-1196.54,0.00014027,2]
[353370943,1739801480012,-500.0,0.00014027,2]
[353370944,1739801480021,-500.0,0.00014027,2]
[353370945,1739801480031,-2436.71,0.00014027,2]
[353370946,1739801480040,-2285.63,0.00014027,2]
[353370947,1739801480050,-500.0,0.00014027,2]
[353370948,1739801480063,-1986.17,0.00014027,2]
[353370949,1739801480074,-500.0,0.00014027,2]
[353370950,1739801480083,-725.18,0.00014027,2]
[353370951,1739801480094,-1529.57,0.00014027,2]
[353370952,1739801480104,-500.0,0.00014027,2]
[353370953,1739801480114,-2059.28,0.00014027,2]
[353370954,1739801480124,-738.76,0.00014027,2]
[353370955,1739801480134,-2080.47,0.00014027,2]
[353370956,1739801480143,-500.0,0.00014027,2]
[353370957,1739801480153,-3621.76,0.00014027,2]
[353370958,1739801480163,-1554.87,0.00014027,2]
[353370959,1739801480173,-500.0,0.00014027,2]
[353370960,1739801480183,-538.32,0.00014027,2]
[353370961,1739801480192,-500.0,0.00014027,2]
[353370962,1739801480201,-3088.56,0.00014027,2]
[353370963,1739801480211,-994.95,0.00014027,2]
[353370964,1739801480220,-2511.48,0.00014027,2]
[353370965,1739801480230,-500.0,0.00014027,2]
[353370966,1739801480240,-500.0,0.00014027,2]
[353370967,1739801480249,-1792.75,0.00014027,2]
[353370968,1739801480259,-500.0,0.00014027,2]
[353370969,1739801480269,-2492.77,0.00014027,2]
[353370970,1739801480279,-1073.96843374,0.00014027,2]
[353370971,1739801480472,-311.79323405,0.00013599,2]
[353370972,1739801481139,-1194.20676595,0.00013599,2]
[353370973,1739801481150,-255.450806,0.000136,2]
[353370974,1739801481161,-255.450806,0.00013671,2]
[353370975,1739801481172,-519.87121183,0.00013698,2]
[353370976,1739801481183,-255.450806,0.00013698,2]
[353370977,1739801481193,-659.29,0.00013698,2]
[353370978,1739801481204,-500.0,0.00013698,2]
[353370979,1739801481214,-255.450806,0.00013698,2]
[353370980,1739801481226,-500.0,0.00013698,2]
[353370981,1739801481237,-255.450806,0.00013698,2]
[353370982,1739801481248,-150.0,0.00013718,2]
[353370983,1739801481259,-659.29,0.0001378,2]
[353370984,1739801481270,-659.29,0.00013863,2]
[353370985,1739801481282,-659.29,0.00013945,2]
[353370986,1739801481292,-848.42156626,0.00014027,2]
[353370987,1739801481303,-716.09,0.00014027,2]
[353370988,1739801481320,-500.0,0.00014027,2]
[353370989,1739801481339,-2447.91,0.00014027,2]
[353370990,1739801481349,-1811.82,0.00014027,2]
[353370991,1739801481359,-500.0,0.00014027,2]
[353370992,1739801481370,-1621.19,0.00014027,2]
[353370993,1739801481380,-2234.88,0.00014027,2]
[353370994,1739801481391,-558.06,0.00014027,2]
[353370995,1739801481400,-500.77,0.00014027,2]
[353370996,1739801481410,-2154.46,0.00014027,2]
[353370997,1739801481421,-714.38,0.00014027,2]
[353370998,1739801481432,-3801.26,0.00014027,2]
[353370999,1739801481442,-2866.82,0.00014027,2]
[353371000,1739801481452,-542.39,0.00014027,2]
[353371001,1739801481462,-4526.39,0.00014027,2]
[353371002,1739801481473,-1995.28,0.00014027,2]
[353371003,1739801481483,-2877.66,0.00014027,2]
[353371004,1739801481493,-1428.61,0.00014027,2]
[353371005,1739801481503,-2559.61,0.00014027,2]
[353371006,1739801481655,-3065.09,0.00014027,2]
[353371007,1739801481665,-7282.2,0.00014027,2]
[353371008,1739801481674,-1200.0,0.00014027,2]
[353371009,1739801481684,-500.0,0.00014027,2]
[353371010,1739801481693,-1230.8,0.00014027,2]
[353371011,1739801481703,-500.0,0.00014027,2]
[353371012,1739801481712,-1753.24,0.00014027,2]
[353371013,1739801481722,-2564.01,0.00014027,2]
[353371014,1739801481731,-2402.32,0.00014027,2]
[353371015,1739801481741,-2640.05,0.00014027,2]
[353371016,1739801481751,-858.88,0.00014027,2]
[353371017,1739801481760,-2789.65,0.00014027,2]
[353371018,1739801481770,-1078.97,0.00014027,2]
[353371019,1739801481780,-500.0,0.00014027,2]
[353371020,1739801481789,-9600.35,0.00014027,2]
[353371021,1739801481799,-500.0,0.00014027,2]
[353371022,1739801481809,-1718.98,0.00014027,2]
[353371023,1739801481818,-3198.48,0.00014027,2]
[353371024,1739801481827,-3079.3,0.00014027,2]
[353371025,1739801481836,-2892.99,0.00014027,2]
[353371026,1739801481846,-1447.04,0.00014027,2]
[353371027,1739801481855,-2486.67,0.00014027,2]
[353371028,1739801481864,-500.0,0.00014027,2]
[353371029,1739801481873,-252.4864258,0.00014027,2]
[353371030,1739801481972,-1602.6935742,0.00014027,2]
[353371031,1739801481982,-500.0,0.00014027,2]
[353371032,1739801481992,-450.88463083,0.00014027,2]
[353371033,1739801482005,-1186.33536917,0.00014027,2]